[Event "Late-Titled-Tuesday-Blitz-January-30-2024"]
[Site "Chess.com"]
[Date "2024.01.30"]
[Round "5"]
[White "TheCavemanChess"]
[Black "Kombinator01"]
[Result "1-0"]
[WhiteElo "2687"]
[BlackElo "2483"]
[TimeControl "180+1"]
[EndTime "14:56:36 PST"]
[Termination "TheCavemanChess won on time"]

1. Nf3 {[%clk 0:03:00.9]} 1... d5 {[%clk 0:02:59.3]} 2. g3 {[%clk 0:03:01.5]}
2... e6 {[%clk 0:02:59.4]} 3. Bg2 {[%clk 0:03:02.1]} 3... Nf6 {[%clk 0:02:59.1]}
4. O-O {[%clk 0:03:03]} 4... h6 {[%clk 0:02:59.2]} 5. c4 {[%clk 0:03:03.3]} 5...
Bd6 {[%clk 0:02:59.2]} 6. d4 {[%clk 0:03:03.2]} 6... O-O {[%clk 0:02:59]} 7. Nc3
{[%clk 0:03:03.6]} 7... Nc6 {[%clk 0:02:58.8]} 8. c5 {[%clk 0:02:59.7]} 8... Be7
{[%clk 0:02:58.7]} 9. Rb1 {[%clk 0:02:55.7]} 9... b6 {[%clk 0:02:56]} 10. b4
{[%clk 0:02:48.1]} 10... bxc5 {[%clk 0:02:55.8]} 11. bxc5 {[%clk 0:02:47.4]}
11... Rb8 {[%clk 0:02:26.2]} 12. Rxb8 {[%clk 0:02:31.2]} 12... Nxb8 {[%clk
0:02:27.1]} 13. Ne5 {[%clk 0:02:31.3]} 13... Nfd7 {[%clk 0:02:23.1]} 14. Nd3
{[%clk 0:02:27.7]} 14... Nc6 {[%clk 0:02:20]} 15. Qa4 {[%clk 0:02:27.9]} 15...
Ndb8 {[%clk 0:01:57.2]} 16. e4 {[%clk 0:02:13.3]} 16... Ba6 {[%clk 0:01:52.9]}
17. exd5 {[%clk 0:01:56.2]} 17... Bxd3 {[%clk 0:01:50.5]} 18. Rd1 {[%clk
0:01:35.7]} 18... Nxd4 {[%clk 0:01:30.2]} 19. Rxd3 {[%clk 0:01:34.7]} 19... e5
{[%clk 0:01:07]} 20. Qxa7 {[%clk 0:01:22.3]} 20... Qc8 {[%clk 0:00:54.4]} 21. d6
{[%clk 0:01:16.6]} 21... Bd8 {[%clk 0:00:39.6]} 22. Be3 {[%clk 0:01:07.9]} 22...
cxd6 {[%clk 0:00:37.9]} 23. cxd6 {[%clk 0:01:08]} 23... Qc4 {[%clk 0:00:32.9]}
24. Bf1 {[%clk 0:00:51.1]} 24... Nbc6 {[%clk 0:00:33.2]} 25. Qa4 {[%clk
0:00:48.2]} 25... Qe6 {[%clk 0:00:29.2]} 26. Nb5 {[%clk 0:00:43.9]} 26... Nxb5
{[%clk 0:00:13.2]} 27. Qxb5 {[%clk 0:00:43.8]} 27... Nd4 {[%clk 0:00:13.4]} 28.
Bxd4 {[%clk 0:00:43.3]} 28... exd4 {[%clk 0:00:14.3]} 29. Rxd4 {[%clk
0:00:43.9]} 29... Qxa2 {[%clk 0:00:14.1]} 30. d7 {[%clk 0:00:39.4]} 30... Qa7
{[%clk 0:00:13.7]} 31. Re4 {[%clk 0:00:38.3]} 31... Qb6 {[%clk 0:00:08.7]} 32.
Qd5 {[%clk 0:00:35]} 32... Qf6 {[%clk 0:00:06.4]} 33. Bc4 {[%clk 0:00:33.9]}
33... Bb6 {[%clk 0:00:06.5]} 34. Rf4 {[%clk 0:00:34.3]} 34... Qe7 {[%clk
0:00:06.1]} 35. Kg2 {[%clk 0:00:32.3]} 35... g6 {[%clk 0:00:03.4]} 36. Qc6
{[%clk 0:00:29.2]} 36... Bc5 {[%clk 0:00:03.3]} 37. Qxg6+ {[%clk 0:00:29.3]}
37... Kh8 {[%clk 0:00:02.7]} 38. Qxh6+ {[%clk 0:00:29.8]} 38... Kg8 {[%clk
0:00:03.2]} 39. Rg4+ {[%clk 0:00:30.5]} 1-0

[Event "Late-Titled-Tuesday-Blitz-January-30-2024"]
[Site "Chess.com"]
[Date "2024.01.30"]
[Round "5"]
[White "VitaliyChayka"]
[Black "Chemim21"]
[Result "1-0"]
[WhiteElo "2424"]
[BlackElo "2237"]
[TimeControl "180+1"]
[EndTime "14:56:37 PST"]
[Termination "VitaliyChayka won by resignation"]

1. d4 {[%clk 0:03:00.9]} 1... d5 {[%clk 0:02:59.8]} 2. Bf4 {[%clk 0:03:01.2]}
2... e6 {[%clk 0:02:59.7]} 3. e3 {[%clk 0:03:01.8]} 3... c5 {[%clk 0:02:59.8]}
4. c3 {[%clk 0:03:01.9]} 4... Nc6 {[%clk 0:03:00.2]} 5. Nd2 {[%clk 0:03:02.2]}
5... Qb6 {[%clk 0:03:00.5]} 6. Rb1 {[%clk 0:03:02.2]} 6... a5 {[%clk 0:02:58]}
7. Ngf3 {[%clk 0:03:01.9]} 7... a4 {[%clk 0:02:57]} 8. a3 {[%clk 0:03:02.4]}
8... Nf6 {[%clk 0:02:53.6]} 9. Bd3 {[%clk 0:03:02]} 9... Bd7 {[%clk 0:02:53]}
10. O-O {[%clk 0:03:01.8]} 10... Be7 {[%clk 0:02:53.1]} 11. Ne5 {[%clk
0:03:02.2]} 11... Qd8 {[%clk 0:02:36.4]} 12. Bc2 {[%clk 0:03:01]} 12... O-O
{[%clk 0:02:28]} 13. Nxd7 {[%clk 0:03:00.1]} 13... Qxd7 {[%clk 0:02:26.6]} 14.
Bxa4 {[%clk 0:03:01]} 14... cxd4 {[%clk 0:02:24.2]} 15. cxd4 {[%clk 0:03:00.4]}
15... Bd6 {[%clk 0:02:21]} 16. Bxd6 {[%clk 0:02:52.1]} 16... Qxd6 {[%clk
0:02:21.2]} 17. Bc2 {[%clk 0:02:51.2]} 17... Rac8 {[%clk 0:02:15.2]} 18. Nf3
{[%clk 0:02:51.4]} 18... Rfe8 {[%clk 0:02:03.8]} 19. Qd3 {[%clk 0:02:50.4]}
19... Ne4 {[%clk 0:02:03]} 20. Rfc1 {[%clk 0:02:48.5]} 20... f5 {[%clk
0:02:01.4]} 21. Ba4 {[%clk 0:02:46.6]} 21... Re7 {[%clk 0:01:56]} 22. Ne5 {[%clk
0:02:45.3]} 22... Rec7 {[%clk 0:01:48.8]} 23. Bxc6 {[%clk 0:02:43.7]} 23... bxc6
{[%clk 0:01:47.2]} 24. f3 {[%clk 0:02:44.3]} 24... Nf6 {[%clk 0:01:41.5]} 25.
Rc5 {[%clk 0:02:44.6]} 25... Nd7 {[%clk 0:01:39.9]} 26. Nxd7 {[%clk 0:02:44]}
26... Qxd7 {[%clk 0:01:40.8]} 27. b4 {[%clk 0:02:43.5]} 27... Qd6 {[%clk
0:01:31.5]} 28. Rbc1 {[%clk 0:02:40.7]} 28... f4 {[%clk 0:01:31.2]} 29. e4
{[%clk 0:02:39.6]} 29... dxe4 {[%clk 0:01:31.3]} 30. Qxe4 {[%clk 0:02:40.2]}
30... Rd8 {[%clk 0:01:20.4]} 31. Rxc6 {[%clk 0:02:36.2]} 31... Rxc6 {[%clk
0:01:18.2]} 32. Rxc6 {[%clk 0:02:35.5]} 32... Qxd4+ {[%clk 0:01:18.1]} 33. Qxd4
{[%clk 0:02:35.5]} 33... Rxd4 {[%clk 0:01:18.7]} 34. Rxe6 {[%clk 0:02:29.3]}
34... Rd1+ {[%clk 0:01:15.9]} 35. Kf2 {[%clk 0:02:29.4]} 35... Ra1 {[%clk
0:01:12.9]} 36. Re2 {[%clk 0:02:21.2]} 36... Rxa3 {[%clk 0:01:12.4]} 37. Rb2
{[%clk 0:02:21.9]} 37... Ra7 {[%clk 0:01:10.8]} 38. b5 {[%clk 0:02:22.5]} 38...
Kf7 {[%clk 0:01:10.5]} 39. Ke2 {[%clk 0:02:20.9]} 39... Ke6 {[%clk 0:01:10.1]}
40. Kd3 {[%clk 0:02:20.8]} 40... Kd5 {[%clk 0:01:10.2]} 41. b6 {[%clk
0:02:17.6]} 41... Rb7 {[%clk 0:01:09.2]} 42. Rb3 {[%clk 0:02:16.4]} 42... g5
{[%clk 0:01:02.2]} 43. Rb1 {[%clk 0:02:11.5]} 43... h5 {[%clk 0:01:01]} 44. Rb5+
{[%clk 0:02:10.3]} 44... Kc6 {[%clk 0:00:52]} 45. Rxg5 {[%clk 0:02:10]} 45...
Kxb6 {[%clk 0:00:52.8]} 46. Ke4 {[%clk 0:02:05.5]} 46... Rf7 {[%clk 0:00:50]}
47. Rxh5 {[%clk 0:02:04.9]} 47... Rg7 {[%clk 0:00:49.2]} 48. Kxf4 {[%clk
0:01:52.4]} 48... Rxg2 {[%clk 0:00:48.7]} 49. Kf5 {[%clk 0:01:45.5]} 49... Kc6
{[%clk 0:00:46.7]} 50. f4 {[%clk 0:01:44.2]} 50... Kd7 {[%clk 0:00:46]} 51. Kf6
{[%clk 0:01:44.4]} 51... Kd6 {[%clk 0:00:33.9]} 52. f5 {[%clk 0:01:43.1]} 52...
Rf2 {[%clk 0:00:30.4]} 53. Rh3 {[%clk 0:01:42.5]} 53... Kd7 {[%clk 0:00:27.2]}
54. Rh8 {[%clk 0:01:35.4]} 54... Rf3 {[%clk 0:00:20.2]} 55. Kg6 {[%clk 0:01:33]}
55... Ke7 {[%clk 0:00:18.9]} 56. Rh7+ {[%clk 0:01:27.3]} 56... Kf8 {[%clk
0:00:18.1]} 57. f6 {[%clk 0:01:24.3]} 57... Kg8 {[%clk 0:00:14.9]} 58. f7+
{[%clk 0:01:22]} 58... Kf8 {[%clk 0:00:11.6]} 59. Rh8+ {[%clk 0:01:17.3]} 59...
Ke7 {[%clk 0:00:11.8]} 60. Re8+ {[%clk 0:01:18.2]} 1-0

[Event "Late-Titled-Tuesday-Blitz-January-30-2024"]
[Site "Chess.com"]
[Date "2024.01.30"]
[Round "5"]
[White "Baby_Legs"]
[Black "Schattman"]
[Result "1/2-1/2"]
[WhiteElo "2603"]
[BlackElo "2455"]
[TimeControl "180+1"]
[EndTime "14:56:38 PST"]
[Termination "Game drawn by agreement"]

1. d4 {[%clk 0:03:00.9]} 1... Nf6 {[%clk 0:02:59.3]} 2. c4 {[%clk 0:03:00.5]}
2... g6 {[%clk 0:02:59.4]} 3. Nf3 {[%clk 0:02:59.6]} 3... Bg7 {[%clk 0:02:59.1]}
4. e3 {[%clk 0:03:00.2]} 4... c5 {[%clk 0:02:58.3]} 5. d5 {[%clk 0:03:00.1]}
5... d6 {[%clk 0:02:56]} 6. Nc3 {[%clk 0:03:00.4]} 6... O-O {[%clk 0:02:55.8]}
7. Be2 {[%clk 0:03:00.2]} 7... e6 {[%clk 0:02:56.2]} 8. O-O {[%clk 0:02:59.3]}
8... Re8 {[%clk 0:02:55.8]} 9. dxe6 {[%clk 0:02:55.5]} 9... Bxe6 {[%clk
0:02:52.8]} 10. h3 {[%clk 0:02:50.6]} 10... Nc6 {[%clk 0:02:52.4]} 11. e4 {[%clk
0:02:50.1]} 11... a6 {[%clk 0:02:45.2]} 12. Bf4 {[%clk 0:02:48.6]} 12... Na5
{[%clk 0:02:30.6]} 13. b3 {[%clk 0:02:23.1]} 13... Nd7 {[%clk 0:02:26.9]} 14.
Rc1 {[%clk 0:02:17.2]} 14... Ne5 {[%clk 0:02:26.6]} 15. Nd5 {[%clk 0:02:09.8]}
15... Nac6 {[%clk 0:02:19.9]} 16. Re1 {[%clk 0:02:02.7]} 16... Nxf3+ {[%clk
0:02:04.9]} 17. Bxf3 {[%clk 0:02:03.6]} 17... Bxd5 {[%clk 0:01:54.1]} 18. Qxd5
{[%clk 0:02:02.5]} 18... Be5 {[%clk 0:01:44]} 19. Be3 {[%clk 0:01:55]} 19... Bd4
{[%clk 0:01:35.7]} 20. Bf4 {[%clk 0:01:50]} 20... Be5 {[%clk 0:01:25.3]} 21. Bd2
{[%clk 0:01:49.9]} 21... Bd4 {[%clk 0:00:49.1]} 22. Qg5 {[%clk 0:01:38.5]} 22...
Bf6 {[%clk 0:00:47.4]} 23. Qe3 {[%clk 0:01:35]} 23... Bd4 {[%clk 0:00:39.9]} 24.
Qe2 {[%clk 0:01:30.8]} 24... Bf6 {[%clk 0:00:35.1]} 25. Qf1 {[%clk 0:01:22.2]}
25... Bg5 {[%clk 0:00:34.1]} 26. Bc3 {[%clk 0:01:18.8]} 26... Bxc1 {[%clk
0:00:32]} 27. Rxc1 {[%clk 0:01:19.7]} 27... Nd4 {[%clk 0:00:29]} 28. Qd3 {[%clk
0:01:19.7]} 28... Qf6 {[%clk 0:00:25.1]} 29. Bg4 {[%clk 0:01:16.9]} 29... h5
{[%clk 0:00:23]} 30. Bd1 {[%clk 0:01:16.8]} 30... Qe6 {[%clk 0:00:19.8]} 31. f3
{[%clk 0:01:13.7]} 31... Qf6 {[%clk 0:00:17.6]} 32. Kh1 {[%clk 0:01:08.1]} 32...
Rab8 {[%clk 0:00:17.1]} 33. Be2 {[%clk 0:01:01.2]} 33... b5 {[%clk 0:00:16.1]}
34. Bf1 {[%clk 0:01:00.9]} 34... b4 {[%clk 0:00:16.4]} 35. Bb2 {[%clk
0:00:59.1]} 35... a5 {[%clk 0:00:16.8]} 36. Rd1 {[%clk 0:00:57.3]} 36... a4
{[%clk 0:00:16.9]} 37. Bxd4 {[%clk 0:00:39.8]} 37... cxd4 {[%clk 0:00:15.4]} 38.
Qxd4 {[%clk 0:00:40.7]} 38... Qxd4 {[%clk 0:00:14.9]} 39. Rxd4 {[%clk
0:00:41.6]} 39... axb3 {[%clk 0:00:14.3]} 40. axb3 {[%clk 0:00:42.5]} 40... Rb6
{[%clk 0:00:14.4]} 1/2-1/2

[Event "Late-Titled-Tuesday-Blitz-January-30-2024"]
[Site "Chess.com"]
[Date "2024.01.30"]
[Round "5"]
[White "WindWhistler11"]
[Black "chegueps"]
[Result "1-0"]
[WhiteElo "2488"]
[BlackElo "2607"]
[TimeControl "180+1"]
[EndTime "14:56:39 PST"]
[Termination "WindWhistler11 won on time"]

1. Nf3 {[%clk 0:03:00.9]} 1... Nf6 {[%clk 0:02:41.2]} 2. c4 {[%clk 0:02:57.3]}
2... e6 {[%clk 0:02:42.1]} 3. g3 {[%clk 0:02:55.9]} 3... d5 {[%clk 0:02:43]} 4.
Bg2 {[%clk 0:02:56.1]} 4... Be7 {[%clk 0:02:41.3]} 5. b3 {[%clk 0:02:54.6]} 5...
O-O {[%clk 0:02:40.9]} 6. Bb2 {[%clk 0:02:55.1]} 6... c5 {[%clk 0:02:40.7]} 7.
e3 {[%clk 0:02:53.1]} 7... Nc6 {[%clk 0:02:38.4]} 8. O-O {[%clk 0:02:53.2]} 8...
d4 {[%clk 0:02:36.2]} 9. exd4 {[%clk 0:02:51.2]} 9... cxd4 {[%clk 0:02:37.1]}
10. d3 {[%clk 0:02:49]} 10... a5 {[%clk 0:02:19.9]} 11. Re1 {[%clk 0:02:48.2]}
11... Ne8 {[%clk 0:02:01.6]} 12. Na3 {[%clk 0:02:46.7]} 12... f6 {[%clk
0:01:59.4]} 13. Nb5 {[%clk 0:02:20.6]} 13... e5 {[%clk 0:01:57.2]} 14. Nd2
{[%clk 0:02:16.9]} 14... Kh8 {[%clk 0:01:49.4]} 15. a3 {[%clk 0:02:14.1]} 15...
Bf5 {[%clk 0:01:45.4]} 16. Ne4 {[%clk 0:02:11.6]} 16... Nc7 {[%clk 0:01:41]} 17.
g4 {[%clk 0:01:56.1]} 17... Bg6 {[%clk 0:01:38.2]} 18. Ng3 {[%clk 0:01:53.3]}
18... Ne6 {[%clk 0:01:33.7]} 19. Bc1 {[%clk 0:01:48.6]} 19... Nc5 {[%clk
0:01:28.7]} 20. Nf5 {[%clk 0:01:43.6]} 20... Qd7 {[%clk 0:01:24]} 21. Qf3 {[%clk
0:01:37.8]} 21... Nxb3 {[%clk 0:01:20.9]} 22. Rb1 {[%clk 0:01:38]} 22... a4
{[%clk 0:01:16.4]} 23. h4 {[%clk 0:01:26.3]} 23... Na7 {[%clk 0:01:02.7]} 24.
Qxb7 {[%clk 0:01:21.3]} 24... Qxb7 {[%clk 0:00:56.3]} 25. Bxb7 {[%clk
0:01:22.2]} 25... Bxf5 {[%clk 0:00:51.4]} 26. gxf5 {[%clk 0:01:14]} 26... Rab8
{[%clk 0:00:50.7]} 27. Nxa7 {[%clk 0:01:07.9]} 27... Rxb7 {[%clk 0:00:50.4]} 28.
Nc6 {[%clk 0:01:08.6]} 28... Bc5 {[%clk 0:00:44.5]} 29. Nb4 {[%clk 0:01:08.8]}
29... g6 {[%clk 0:00:33.5]} 30. fxg6 {[%clk 0:01:06.8]} 30... Rg8 {[%clk
0:00:33.7]} 31. f4 {[%clk 0:01:06.1]} 31... Rxg6+ {[%clk 0:00:33.4]} 32. Kf2
{[%clk 0:01:06.7]} 32... Bxb4 {[%clk 0:00:28.4]} 33. axb4 {[%clk 0:01:06.7]}
33... Rxb4 {[%clk 0:00:29.2]} 34. fxe5 {[%clk 0:01:04.3]} 34... fxe5 {[%clk
0:00:24.4]} 35. Rxe5 {[%clk 0:01:04.9]} 35... Rb8 {[%clk 0:00:16.7]} 36. Rf5
{[%clk 0:00:59.8]} 36... Rbg8 {[%clk 0:00:13.5]} 37. Bf4 {[%clk 0:00:57.9]}
37... Rg2+ {[%clk 0:00:13.3]} 38. Kf3 {[%clk 0:00:57]} 38... Rg1 {[%clk
0:00:03.7]} 39. Be5+ {[%clk 0:00:55.7]} 39... R1g7 {[%clk 0:00:02.9]} 40. Bxg7+
{[%clk 0:00:50.9]} 40... Rxg7 {[%clk 0:00:01.9]} 41. Rf8+ {[%clk 0:00:45.8]}
41... Rg8 {[%clk 0:00:02.1]} 42. Rxg8+ {[%clk 0:00:45.6]} 42... Kxg8 {[%clk
0:00:03]} 43. Rb2 {[%clk 0:00:42.7]} 43... Kf7 {[%clk 0:00:03.1]} 44. Ke4 {[%clk
0:00:40.5]} 1-0

[Event "Late-Titled-Tuesday-Blitz-January-30-2024"]
[Site "Chess.com"]
[Date "2024.01.30"]
[Round "5"]
[White "jlf287"]
[Black "BardArtem"]
[Result "1-0"]
[WhiteElo "2531"]
[BlackElo "2760"]
[TimeControl "180+1"]
[EndTime "14:56:41 PST"]
[Termination "jlf287 won on time"]

1. d4 {[%clk 0:03:00.9]} 1... Nf6 {[%clk 0:02:59.5]} 2. c4 {[%clk 0:03:01.1]}
2... b6 {[%clk 0:02:58.5]} 3. Nc3 {[%clk 0:02:59.8]} 3... Bb7 {[%clk 0:02:58.9]}
4. Qc2 {[%clk 0:02:58.6]} 4... d5 {[%clk 0:02:57.8]} 5. cxd5 {[%clk 0:02:58.2]}
5... Nxd5 {[%clk 0:02:58.7]} 6. Nf3 {[%clk 0:02:57.9]} 6... g6 {[%clk
0:02:58.5]} 7. e4 {[%clk 0:02:57.5]} 7... Nxc3 {[%clk 0:02:57.6]} 8. bxc3 {[%clk
0:02:58.1]} 8... Bg7 {[%clk 0:02:58.3]} 9. Bd3 {[%clk 0:02:57.7]} 9... O-O
{[%clk 0:02:58.6]} 10. O-O {[%clk 0:02:55.3]} 10... c5 {[%clk 0:02:58.6]} 11.
Be3 {[%clk 0:02:54.6]} 11... Nc6 {[%clk 0:02:41.8]} 12. d5 {[%clk 0:02:53.5]}
12... Na5 {[%clk 0:02:40.5]} 13. Rad1 {[%clk 0:02:34.9]} 13... Qe8 {[%clk
0:02:33.3]} 14. c4 {[%clk 0:02:32.4]} 14... Bc8 {[%clk 0:02:22.6]} 15. h3 {[%clk
0:02:32]} 15... Bd7 {[%clk 0:02:21.1]} 16. e5 {[%clk 0:02:31.5]} 16... Ba4
{[%clk 0:02:20.9]} 17. Qd2 {[%clk 0:02:28.7]} 17... Bxd1 {[%clk 0:02:21.8]} 18.
Rxd1 {[%clk 0:02:29.2]} 18... Qa4 {[%clk 0:02:20.7]} 19. Qe2 {[%clk 0:02:26]}
19... Rad8 {[%clk 0:02:15.1]} 20. h4 {[%clk 0:02:23.6]} 20... b5 {[%clk
0:02:10.7]} 21. Bxc5 {[%clk 0:02:12.4]} 21... bxc4 {[%clk 0:02:04.1]} 22. Bc2
{[%clk 0:02:12.7]} 22... Qd7 {[%clk 0:01:55.6]} 23. Ng5 {[%clk 0:01:48.5]} 23...
Nb7 {[%clk 0:01:36]} 24. e6 {[%clk 0:01:29.1]} 24... fxe6 {[%clk 0:01:11.7]} 25.
Nxe6 {[%clk 0:01:30]} 25... Nxc5 {[%clk 0:00:36.6]} 26. Nxc5 {[%clk 0:01:30.9]}
26... Qb5 {[%clk 0:00:36.8]} 27. Ne6 {[%clk 0:01:29.6]} 27... Rxd5 {[%clk
0:00:36]} 28. Nxf8 {[%clk 0:01:23]} 28... Kxf8 {[%clk 0:00:30.4]} 29. Qf3+
{[%clk 0:01:18.7]} 29... Rf5 {[%clk 0:00:26.1]} 30. Bxf5 {[%clk 0:01:16.6]}
30... Qxf5 {[%clk 0:00:21.9]} 31. Qa8+ {[%clk 0:01:07.8]} 31... Kf7 {[%clk
0:00:22.1]} 32. Qxa7 {[%clk 0:01:03.6]} 32... c3 {[%clk 0:00:20.6]} 33. Re1
{[%clk 0:00:49.3]} 33... Bf6 {[%clk 0:00:17.2]} 34. Qa3 {[%clk 0:00:45.5]} 34...
Qd3 {[%clk 0:00:04.2]} 35. Qb3+ {[%clk 0:00:44.6]} 35... Kg7 {[%clk 0:00:04.2]}
36. Rd1 {[%clk 0:00:39.8]} 36... Qe2 {[%clk 0:00:02]} 37. Rc1 {[%clk 0:00:33.1]}
37... Kh6 {[%clk 0:00:01.9]} 38. Qc2 {[%clk 0:00:30.9]} 38... Qe4 {[%clk
0:00:01.8]} 39. Qxe4 {[%clk 0:00:29.8]} 1-0

[Event "Late-Titled-Tuesday-Blitz-January-30-2024"]
[Site "Chess.com"]
[Date "2024.01.30"]
[Round "5"]
[White "StellarChess"]
[Black "Quattroporte300"]
[Result "0-1"]
[WhiteElo "2543"]
[BlackElo "2400"]
[TimeControl "180+1"]
[EndTime "14:56:43 PST"]
[Termination "Quattroporte300 won by checkmate"]

1. d4 {[%clk 0:03:00.9]} 1... d5 {[%clk 0:02:59]} 2. c4 {[%clk 0:02:55.7]} 2...
e6 {[%clk 0:02:59.1]} 3. Nf3 {[%clk 0:02:55.8]} 3... c6 {[%clk 0:02:54.1]} 4.
Nbd2 {[%clk 0:02:54.2]} 4... Nf6 {[%clk 0:02:51.5]} 5. Qc2 {[%clk 0:02:54]} 5...
Nbd7 {[%clk 0:02:49.1]} 6. e4 {[%clk 0:02:54.1]} 6... dxe4 {[%clk 0:02:49]} 7.
Nxe4 {[%clk 0:02:54.6]} 7... Nxe4 {[%clk 0:02:49.7]} 8. Qxe4 {[%clk 0:02:55.3]}
8... Nf6 {[%clk 0:02:50.5]} 9. Qc2 {[%clk 0:02:53.5]} 9... c5 {[%clk 0:02:41.3]}
10. dxc5 {[%clk 0:02:46.6]} 10... Bxc5 {[%clk 0:02:38.9]} 11. Bd3 {[%clk
0:02:44.7]} 11... O-O {[%clk 0:02:38.7]} 12. O-O {[%clk 0:02:43.1]} 12... h6
{[%clk 0:02:36.2]} 13. h3 {[%clk 0:02:39.7]} 13... b6 {[%clk 0:02:29.2]} 14. Rd1
{[%clk 0:02:39.3]} 14... Qe7 {[%clk 0:02:27.6]} 15. a3 {[%clk 0:02:32]} 15...
Bb7 {[%clk 0:02:27.1]} 16. Nd2 {[%clk 0:02:20.2]} 16... Rfd8 {[%clk 0:02:14.1]}
17. b4 {[%clk 0:02:11.4]} 17... Bd4 {[%clk 0:02:13.3]} 18. Rb1 {[%clk
0:02:10.2]} 18... Rac8 {[%clk 0:02:07.1]} 19. Bb2 {[%clk 0:01:53.7]} 19... e5
{[%clk 0:01:55.3]} 20. Bxd4 {[%clk 0:01:50.7]} 20... Rxd4 {[%clk 0:01:47.2]} 21.
Nb3 {[%clk 0:01:47]} 21... Rh4 {[%clk 0:01:18.3]} 22. c5 {[%clk 0:01:33.6]}
22... Nh5 {[%clk 0:01:10.5]} 23. Bf5 {[%clk 0:01:28.2]} 23... Qg5 {[%clk
0:01:01.4]} 24. f4 {[%clk 0:01:08.8]} 24... Nxf4 {[%clk 0:00:44.3]} 25. Bxc8
{[%clk 0:01:08.1]} 25... Bxg2 {[%clk 0:00:38]} 26. Kf2 {[%clk 0:00:29.7]} 26...
Nxh3+ {[%clk 0:00:20.4]} 27. Bxh3 {[%clk 0:00:28.8]} 27... Rxh3 {[%clk
0:00:21.1]} 28. Rd3 {[%clk 0:00:15.5]} 28... Qf5+ {[%clk 0:00:08.5]} 29. Kxg2
{[%clk 0:00:15.5]} 29... Rxd3 {[%clk 0:00:09]} 30. Rc1 {[%clk 0:00:12.1]} 30...
Qg4+ {[%clk 0:00:04.8]} 31. Kf2 {[%clk 0:00:10.9]} 31... Rf3+ {[%clk 0:00:05.3]}
32. Ke1 {[%clk 0:00:10.9]} 32... Qg1+ {[%clk 0:00:05]} 33. Ke2 {[%clk
0:00:10.1]} 33... Qg2+ {[%clk 0:00:05.3]} 34. Ke1 {[%clk 0:00:08.2]} 34... Rf1#
{[%clk 0:00:05.9]} 0-1

[Event "Late-Titled-Tuesday-Blitz-January-30-2024"]
[Site "Chess.com"]
[Date "2024.01.30"]
[Round "5"]
[White "crazy_but_lazy"]
[Black "penguingm1"]
[Result "0-1"]
[WhiteElo "2626"]
[BlackElo "2868"]
[TimeControl "180+1"]
[EndTime "14:56:45 PST"]
[Termination "penguingm1 won on time"]

1. e4 {[%clk 0:02:57.2]} 1... b5 {[%clk 0:03:00.3]} 2. Bxb5 {[%clk 0:02:44.4]}
2... f5 {[%clk 0:03:00.8]} 3. exf5 {[%clk 0:02:40.9]} 3... c6 {[%clk 0:03:01.3]}
4. Be2 {[%clk 0:02:36]} 4... d5 {[%clk 0:02:58.6]} 5. d4 {[%clk 0:02:23.8]} 5...
Bxf5 {[%clk 0:02:58.3]} 6. Nf3 {[%clk 0:02:21.3]} 6... Nf6 {[%clk 0:02:58.7]} 7.
O-O {[%clk 0:02:19.8]} 7... e6 {[%clk 0:02:59]} 8. c4 {[%clk 0:02:20]} 8... Bd6
{[%clk 0:02:59.2]} 9. Nc3 {[%clk 0:02:19.8]} 9... O-O {[%clk 0:02:59.1]} 10. Bg5
{[%clk 0:02:15.5]} 10... Nbd7 {[%clk 0:02:59.1]} 11. Bh4 {[%clk 0:02:14.1]}
11... Qe8 {[%clk 0:02:57.4]} 12. Re1 {[%clk 0:02:11.3]} 12... Bb4 {[%clk
0:02:39.6]} 13. cxd5 {[%clk 0:01:53]} 13... cxd5 {[%clk 0:02:37.8]} 14. Bg3
{[%clk 0:01:30.1]} 14... Ne4 {[%clk 0:02:35.6]} 15. Rc1 {[%clk 0:01:28]} 15...
Nxc3 {[%clk 0:02:35]} 16. bxc3 {[%clk 0:01:20.9]} 16... Ba3 {[%clk 0:02:35.6]}
17. Rb1 {[%clk 0:01:21.5]} 17... Bxb1 {[%clk 0:02:33.7]} 18. Qxb1 {[%clk
0:01:22.4]} 18... Nf6 {[%clk 0:02:28]} 19. Qb3 {[%clk 0:01:14.5]} 19... Qe7
{[%clk 0:02:28.2]} 20. Bd3 {[%clk 0:01:14.8]} 20... Bd6 {[%clk 0:02:27.8]} 21.
Ne5 {[%clk 0:01:10.9]} 21... Qc7 {[%clk 0:02:26.1]} 22. c4 {[%clk 0:01:08.5]}
22... Rab8 {[%clk 0:02:21.6]} 23. Qd1 {[%clk 0:00:53.1]} 23... dxc4 {[%clk
0:02:14.1]} 24. Bxc4 {[%clk 0:00:52.3]} 24... Nd5 {[%clk 0:02:12.8]} 25. Bxd5
{[%clk 0:00:25.2]} 25... exd5 {[%clk 0:02:11.9]} 26. Qg4 {[%clk 0:00:25.4]}
26... Rbe8 {[%clk 0:02:10.6]} 27. h4 {[%clk 0:00:25.3]} 27... Qc2 {[%clk
0:02:08.4]} 28. Qd7 {[%clk 0:00:16.7]} 28... Qc7 {[%clk 0:02:07.9]} 29. Qg4
{[%clk 0:00:16.5]} 29... Re7 {[%clk 0:02:04.6]} 30. h5 {[%clk 0:00:16.7]} 30...
h6 {[%clk 0:02:04.7]} 31. Qe2 {[%clk 0:00:15.1]} 31... Qc8 {[%clk 0:02:02.5]}
32. Qd2 {[%clk 0:00:13.6]} 32... Qf5 {[%clk 0:02:01.5]} 33. Rc1 {[%clk
0:00:12.4]} 33... Qxh5 {[%clk 0:02:00.3]} 34. Qa5 {[%clk 0:00:12.3]} 34... Bxe5
{[%clk 0:01:56.1]} 35. Bxe5 {[%clk 0:00:09.5]} 35... Qf7 {[%clk 0:01:52.5]} 36.
f4 {[%clk 0:00:08.3]} 36... Rb7 {[%clk 0:01:50.8]} 37. Qc5 {[%clk 0:00:08.1]}
37... Rb2 {[%clk 0:01:47.9]} 38. Qd6 {[%clk 0:00:05.8]} 38... Rb7 {[%clk
0:01:42.3]} 39. a4 {[%clk 0:00:06.2]} 39... Qd7 {[%clk 0:01:38.7]} 40. Qxd7
{[%clk 0:00:05]} 40... Rxd7 {[%clk 0:01:39.6]} 41. Rc5 {[%clk 0:00:05.1]} 41...
Kf7 {[%clk 0:01:37.7]} 42. g4 {[%clk 0:00:05.2]} 42... Rh8 {[%clk 0:01:37.2]}
43. a5 {[%clk 0:00:05]} 43... h5 {[%clk 0:01:37.7]} 44. g5 {[%clk 0:00:04.3]}
44... Kg6 {[%clk 0:01:36.3]} 45. Rc6+ {[%clk 0:00:02.4]} 45... Kf5 {[%clk
0:01:36.8]} 46. Kf2 {[%clk 0:00:03]} 46... h4 {[%clk 0:01:36.9]} 47. Kg2 {[%clk
0:00:03.6]} 47... Kg4 {[%clk 0:01:35.4]} 48. a6 {[%clk 0:00:03.8]} 48... Rf8
{[%clk 0:01:28.5]} 49. Kh2 {[%clk 0:00:03.8]} 49... Rdf7 {[%clk 0:01:18.3]} 50.
Rc5 {[%clk 0:00:03.3]} 50... Rd8 {[%clk 0:01:05.8]} 51. Rc2 {[%clk 0:00:03]}
51... Re7 {[%clk 0:01:04.5]} 52. Rg2+ {[%clk 0:00:02]} 52... Kf5 {[%clk
0:01:05.1]} 53. Kh3 {[%clk 0:00:02]} 53... Re6 {[%clk 0:01:05.2]} 54. Kxh4
{[%clk 0:00:01.7]} 54... g6 {[%clk 0:00:58.2]} 55. Kg3 {[%clk 0:00:01.5]} 55...
Rxa6 {[%clk 0:00:56.7]} 0-1